[Event "Sautron op 15th"]
[Site "Sautron"]
[Date "2015.10.24"]
[Round "4.7"]
[White "Stany, George Anthony"]
[Black "Swayams, Mishra"]
[Result "1/2-1/2"]
[ECO "A30"]
[WhiteElo "2385"]
[BlackElo "2444"]
[Annotator "RR"]
[PlyCount "50"]
[EventDate "2015.10.24"]
[EventType "swiss"]
[EventRounds "9"]
[EventCountry "FRA"]
[SourceTitle "CBM 169 Extra"]
[Source "ChessBase"]
[SourceDate "2015.12.18"]
[SourceVersion "1"]
[SourceVersionDate "2015.12.18"]
[SourceQuality "1"]
[TimeControl "40/5400+30:1800+30"]
[WhiteClock "0:57:34"]
[BlackClock "0:13:29"]

1. Nf3 {[%emt 0:00:00]} Nf6 {[%emt 0:00:54]} 2. g3 {[%emt 0:00:08]} c5 {
[%emt 0:00:17]} 3. c4 {[%emt 0:01:41]} b6 {[%emt 0:00:06]} 4. Bg2 {[%emt 0:00:
04]} Bb7 {[%emt 0:00:01]} 5. O-O {[%emt 0:00:19]} g6 {[%emt 0:00:08]} 6. Nc3 {
[%emt 0:00:11]} Bg7 {[%emt 0:00:05]} 7. d3 {[%emt 0:03:38]} (7. d4 {La grande
ligne} cxd4 8. Qxd4 d6 9. Rd1 Nbd7 10. Be3 Rc8 11. Rac1 O-O 12. Qh4 a6 13. b3
Rc7 14. Bh3 (14. g4 h6) (14. Ne1 Bxg2 15. Nxg2 Qb8 16. Bh6 Bxh6 17. Qxh6 b5 18.
Ne3 Rc5 {[%cal Gc5h5]} 19. Ncd5 Re8 20. b4 Rcc8 $13 {Tukmakov,V (2568)-Palac,M
(2568) SLO-chT 12th 2002 (1) 1/2}) 14... Qb8 15. g4 e6 16. g5 Ne8 17. Ne4 d5
18. cxd5 Bxd5 19. Bg2) 7... O-O {[%emt 0:09:27]} 8. Rb1 {[%emt 0:07:17] Une
variante assez peu ambitieuse} d5 $132 {[%emt 0:01:02]} 9. cxd5 {[%emt 0:00:32]
} Nxd5 {[%emt 0:00:05]} 10. Bd2 {[%emt 0:00:07]} Nc6 {[%emt 0:00:49]} 11. a3 {
[%emt 0:09:33]} Rc8 {[%emt 0:08:12]} (11... Nc7 12. Qa4 Nd4 13. Nxd4 Bxg2 14.
Nc6 Bxc6 15. Qxc6 Ne6 16. Qa4 Nd4 17. Be3 Qc8 18. Rfc1 Qe6 19. Bxd4 Bxd4 20. e3
Bg7 21. Qe4 Qxe4 22. Nxe4 Rfd8 23. Rd1 Rd7 24. Kf1 Rad8 25. Ke2 h6 26. Nc3 e6
27. Rbc1 Bxc3 {1/2-1/2 (27) Horvath,D (2389)-Hujbert,F (2429) Budapest 2013})
12. Qa4 {[%emt 0:05:58]} a6 {[%emt 0:40:09]} 13. Rfc1 {[%emt 0:00:46] (=)} e6 {
[%emt 0:07:17]} 14. Qd1 {[%emt 0:02:56]} Qd7 $146 {[%emt 0:02:28]} (14... h6
15. Na4 Na7 16. e4 Ne7 17. b4 cxb4 18. Bxb4 Rxc1 19. Qxc1 Re8 20. Nxb6 Nb5 21.
Na4 Nc6 22. Bd2 Bf8 23. Bxh6 Bxh6 24. Qxh6 Qxd3 25. Re1 Qxa3 26. Ng5 Ne5 27.
Qh7+ Kf8 28. Qh8+ Ke7 29. Qxe5 Qxa4 30. Qc5+ Kf6 31. e5+ Kxg5 32. Qe3+ Kh5 33.
h4 Qg4 34. Bh3 {1-0 (34) Karlsson,L (2405)-Vadasz,L (2500) Yerevan 1980}) 15.
Na4 {[%emt 0:00:44]} Nd4 $1 {[%emt 0:04:50]} 16. e4 {[%emt 0:02:52]} Bc6 {
[%emt 0:04:50]} 17. b3 {[%emt 0:02:48]} Nxb3 {[%emt 0:00:35]} 18. Nxb6 {
[%emt 0:00:03]} Nxb6 {[%emt 0:00:08]} 19. Qxb3 {[%emt 0:00:04]} Na4 {[%emt 0:
00:14]} 20. Bf4 {[%emt 0:00:05]} Bb5 {[%emt 0:00:24]} 21. Bf1 {[%emt 0:00:22]}
Rfd8 $15 {[%emt 0:01:16][%csl Rd3]} 22. Ne5 {[%emt 0:00:11]} Qe7 {[%emt 0:00:
49]} 23. Nf3 {[%emt 0:02:27]} h6 {[%emt 0:03:08]} 24. Be5 {[%emt 0:02:04]} Bxe5
{[%emt 0:01:14]} 25. Nxe5 {[%emt 0:00:06]} Qd6 {[%emt 0:00:33]} 1/2-1/2